fUSD/lending_fUSD_20250716
["ID","MTS","AMOUNT","RATE_DAILY","PERIOD"]
[372409898,1752633064845,-6341.79,0.00021917,2]
[372409899,1752633064855,-13249.01,0.00021917,2]
[372409900,1752633064864,-460.0,0.00021917,2]
[372409901,1752633064873,-460.0,0.00021917,2]
[372409902,1752633064882,-5311.21,0.00021917,2]
[372409903,1752633064891,-460.0,0.00021917,2]
[372409904,1752633064901,-460.0,0.00021917,2]
[372409905,1752633064910,-821.01,0.00021917,2]
[372409906,1752633064919,-1339.18,0.00021917,2]
[372409907,1752633064928,-460.0,0.00021917,2]
[372409908,1752633064937,-3187.26,0.00021917,2]
[372409909,1752633064947,-1325.01,0.00021917,2]
[372409910,1752633064956,-2885.63,0.00021917,2]
[372409911,1752633064966,-3037.9,0.00021917,2]
[372409912,1752633064975,-5498.91,0.00021917,2]
[372409913,1752633064984,-1447.14,0.00021917,2]
[372409914,1752633064993,-460.0,0.00021917,2]
[372409915,1752633065006,-460.0,0.00021917,2]
[372409916,1752633065015,-1351.49,0.00021917,2]
[372409917,1752633065025,-7134.42,0.00021917,2]
[372409918,1752633065035,-460.0,0.00021917,2]
[372409919,1752633065044,-460.72055114,0.00021917,2]
[372409920,1752633065053,-4298.25,0.00021917,2]
[372409921,1752633065063,-2023.43,0.00021917,2]
[372409922,1752633065072,-460.0,0.00021917,2]
[372409923,1752633065082,-561.84,0.00021917,2]
[372409924,1752633065091,-669.14,0.00021917,2]
[372409925,1752633065101,-1302.9,0.00021917,2]
[372409926,1752633065110,-715.028556,0.00021917,2]
[372409927,1752633065120,-715.028556,0.00021917,2]
[372409928,1752633065129,-460.0,0.00021917,2]
[372409929,1752633065139,-715.028556,0.00021917,2]
[372409930,1752633065149,-508.08,0.00021917,2]
[372409931,1752633065159,-460.0,0.00021917,2]
[372409932,1752633065168,-460.0,0.00021917,2]
[372409933,1752633065178,-3930.16,0.00021917,2]
[372409934,1752633065187,-715.028556,0.00021917,2]
[372409935,1752633065196,-715.028556,0.00021917,2]
[372409936,1752633065205,-715.028556,0.00021917,2]
[372409937,1752633065215,-715.028556,0.00021917,2]
[372409938,1752633065224,-460.0,0.00021917,2]
[372409939,1752633065234,-5041.93883,0.00021918,30]
[372409940,1752633065243,-861.0,0.00021918,3]
[372409941,1752633065254,-1000.0,0.00021918,3]
[372409942,1752633065263,-1000.0,0.00021918,3]
[372409943,1752633065272,-1000.0,0.00021918,3]
[372409944,1752633065281,-1000.0,0.00021918,3]
[372409945,1752633065291,-1000.0,0.00021918,3]
[372409946,1752633065300,-1000.0,0.00021918,3]
[372409947,1752633065309,-1000.0,0.00021918,3]
[372409948,1752633065319,-1000.0,0.00021918,3]
[372409949,1752633065328,-1000.0,0.00021918,3]
[372409950,1752633065338,-1000.0,0.00021918,3]
[372409951,1752633065347,-1000.0,0.00021918,3]
[372409952,1752633065356,-1000.0,0.00021918,3]
[372409953,1752633065366,-1000.0,0.00021918,3]
[372409954,1752633065375,-1000.0,0.00021918,3]
[372409955,1752633065384,-1000.0,0.00021918,3]
[372409956,1752633065399,-1000.0,0.00021918,3]
[372409957,1752633065412,-1000.0,0.00021918,3]
[372409958,1752633065422,-1000.0,0.00021918,3]
[372409959,1752633065432,-1000.0,0.00021918,3]
[372409960,1752633065443,-1000.0,0.00021918,3]
[372409961,1752633065452,-1000.0,0.00021918,3]
[372409962,1752633065461,-1000.0,0.00021918,3]
[372409963,1752633065470,-1000.0,0.00021918,3]
[372409964,1752633065481,-1000.0,0.00021918,3]
[372409965,1752633065500,-1000.0,0.00021918,3]
[372409966,1752633065511,-1000.0,0.00021918,3]
[372409967,1752633065520,-1000.0,0.00021918,3]
[372409968,1752633065529,-1000.0,0.00021918,3]
[372409969,1752633065539,-1000.0,0.00021918,3]
[372409970,1752633065550,-1000.0,0.00021918,3]
[372409971,1752633065573,-1000.0,0.00021918,3]
[372409972,1752633065583,-1000.0,0.00021918,3]
[372409973,1752633065592,-1000.0,0.00021918,3]
[372409974,1752633065601,-1000.0,0.00021918,3]
[372409975,1752633065610,-1000.0,0.00021918,3]
[372409976,1752633065619,-1000.0,0.00021918,3]
[372409977,1752633065628,-1000.0,0.00021918,3]
[372409978,1752633065640,-1000.0,0.00021918,3]
[372409979,1752633065654,-1000.0,0.00021918,3]
[372409980,1752633065668,-1000.0,0.00021918,3]
[372409981,1752633065680,-1000.0,0.00021918,3]
[372409982,1752633065692,-1000.0,0.00021918,3]
[372409983,1752633065706,-1000.0,0.00021918,3]
[372409984,1752633065719,-1000.0,0.00021918,3]
[372409985,1752633065732,-1000.0,0.00021918,3]
[372409986,1752633065747,-1000.0,0.00021918,3]
[372409987,1752633065759,-1000.0,0.00021918,3]
[372409988,1752633065772,-1000.0,0.00021918,3]
[372409989,1752633065782,-1000.0,0.00021918,3]
[372409990,1752633065796,-1000.0,0.00021918,3]
[372409991,1752633065809,-1000.0,0.00021918,3]
[372409992,1752633065823,-1000.0,0.00021918,3]
[372409993,1752633065837,-1000.0,0.00021918,3]
[372409994,1752633065856,-1000.0,0.00021918,3]
[372409995,1752633065869,-1000.0,0.00021918,3]
[372409996,1752633065887,-1000.0,0.00021918,3]
[372409997,1752633065901,-1000.0,0.00021918,3]
[372409998,1752633065917,-875.0,0.00021918,3]
[372409999,1752633065931,-151.0,0.00021918,2]
[372410000,1752633065944,-151.0,0.00021918,2]
[372410001,1752633065960,-151.0,0.00021918,2]
[372410002,1752633065976,-151.0,0.00021918,2]
[372410003,1752633065991,-151.0,0.00021918,2]
[372410004,1752633066006,-151.0,0.00021918,2]
[372410005,1752633066019,-151.0,0.00021918,2]
[372410006,1752633066032,-5000.0,0.00021918,2]
[372410007,1752633066047,-151.0,0.00021918,2]
[372410008,1752633066062,-151.0,0.00021918,2]
[372410009,1752633066073,-151.0,0.00021918,2]
[372410010,1752633066084,-288.498733,0.00021918,2]
[372410011,1752633066098,-200.0,0.00021918,7]
[372410012,1752633066115,-153.0,0.00021918,2]
[372410013,1752633066127,-153.0,0.00021918,2]
[372410014,1752633066140,-153.0,0.00021918,2]
[372410015,1752633066154,-153.0,0.00021918,2]
[372410016,1752633066168,-153.87333875,0.00021918,2]
[372410017,1752633066182,-150.0,0.00021918,2]
[372410018,1752633066195,-152.929818,0.00021918,7]
[372410019,1752633066208,-177.001933,0.00021918,7]
[372410020,1752633066221,-177.001933,0.00021918,7]
[372410021,1752633066237,-151.0,0.00021918,7]
[372410022,1752633066251,-241.555877,0.00021918,7]
[372410023,1752633066266,-151.0,0.00021918,7]
[372410024,1752633066280,-151.0,0.00021918,7]
[372410025,1752633066297,-500.0,0.00021918,2]
[372410026,1752633066311,-151.0,0.00021918,7]
[372410027,1752633066325,-231.507309,0.00021918,7]
[372410028,1752633066339,-231.507309,0.00021918,7]
[372410029,1752633066352,-151.0,0.00021918,7]
[372410030,1752633066367,-154.437661,0.00021918,7]
[372410031,1752633066381,-151.0,0.00021918,7]
[372410032,1752633066397,-216.135749,0.00021918,7]
[372410033,1752633066413,-216.135749,0.00021918,7]
[372410034,1752633066426,-500.0,0.00021918,2]
[372410035,1752633066440,-150.0,0.00021918,2]
[372410036,1752633066454,-150.0,0.00021918,2]
[372410037,1752633066469,-179.708148,0.00021918,7]
[372410038,1752633066482,-179.708148,0.00021918,7]
[372410039,1752633066497,-539.0,0.00021918,2]
[372410040,1752633066511,-715.028556,0.00021918,7]
[372410041,1752633066524,-150.0,0.00021919,2]
[372410042,1752633066536,-163.41220569,0.0002192,2]
[372410043,1752633066549,-838.53403088,0.0002192,7]
[372410044,1752633066562,-838.53403088,0.0002192,3]
[372410045,1752633066576,-210.72748344,0.0002192,7]
[372410046,1752633066590,-210.72748344,0.0002192,3]
[372410047,1752633066605,-447.87393831,0.0002192,7]
[372410048,1752633066618,-447.87393831,0.0002192,3]
[372410049,1752633066631,-151.0,0.00021921,7]
[372410050,1752633066643,-207.181366,0.00021921,7]
[372410051,1752633066656,-241.11355937,0.00021954,4]
[372410052,1752633066668,-241.11355937,0.00021954,4]
[372410053,1752633066680,-241.11355937,0.00021954,4]
[372410054,1752633066693,-241.11355937,0.00021954,4]
[372410055,1752633066705,-241.11355937,0.00021954,4]
[372410056,1752633066717,-241.11355937,0.00021954,4]
[372410057,1752633066730,-241.11355937,0.00021954,4]
[372410058,1752633066742,-241.11355937,0.00021954,4]
[372410059,1752633066755,-241.11355937,0.00021954,4]
[372410060,1752633066767,-241.11355937,0.00021954,4]
[372410061,1752633066782,-241.11355937,0.00021954,4]
[372410062,1752633066794,-241.11355937,0.00021954,4]
[372410063,1752633066807,-241.11355937,0.00021954,4]
[372410064,1752633066818,-241.11355937,0.00021954,4]
[372410065,1752633066831,-241.11355937,0.00021954,4]
[372410066,1752633066844,-241.11355937,0.00021954,4]
[372410067,1752633066857,-242.01653799,0.00021954,4]
[372410068,1752633066870,-242.01653799,0.00021954,4]
[372410069,1752633066884,-242.01653799,0.00021954,4]
[372410070,1752633066896,-242.01653799,0.00021954,4]
[372410071,1752633066909,-242.01653799,0.00021954,4]
[372410072,1752633066923,-242.01653799,0.00021954,4]
[372410073,1752633066935,-242.01653799,0.00021954,4]
[372410074,1752633066948,-242.01653799,0.00021954,4]
[372410075,1752633066961,-242.01653799,0.00021954,4]
[372410076,1752633066972,-242.01653799,0.00021954,4]
[372410077,1752633066984,-242.01653799,0.00021954,4]
[372410078,1752633066999,-242.01653799,0.00021954,4]
[372410079,1752633067010,-242.01653799,0.00021954,4]
[372410080,1752633067023,-242.01653799,0.00021954,4]
[372410081,1752633067035,-242.01653799,0.00021954,4]
[372410082,1752633067047,-242.01653799,0.00021954,4]
[372410083,1752633067059,-258.581617,0.00021954,4]
[372410084,1752633067071,-258.581617,0.00021954,4]
[372410085,1752633067083,-258.581617,0.00021954,4]
[372410086,1752633067095,-258.581617,0.00021954,4]
[372410087,1752633067108,-258.581617,0.00021954,4]
[372410088,1752633067119,-258.581617,0.00021954,4]
[372410089,1752633067142,-258.581617,0.00021954,4]
[372410090,1752633067154,-258.581617,0.00021954,4]
[372410091,1752633067166,-258.581617,0.00021954,4]
[372410092,1752633067177,-258.581617,0.00021954,4]
[372410093,1752633067189,-258.581617,0.00021954,4]
[372410094,1752633067201,-258.581617,0.00021954,4]
[372410095,1752633067213,-258.581617,0.00021954,4]
[372410096,1752633067224,-258.581617,0.00021954,4]
[372410097,1752633067235,-258.581617,0.00021954,4]
[372410098,1752633067247,-258.581617,0.00021954,4]
[372410099,1752633067260,-1401.87656263,0.00021954,2]
[372410100,1752633067271,-216.12716003,0.00021954,2]
[372410101,1752633067286,-166.75489779,0.00021954,4]
[372410102,1752633067297,-162.66972867,0.00021954,2]
[372410103,1752633067308,-391.21506496,0.00021954,2]
[372410104,1752633067320,-151.3438009,0.00021955,2]
[372410105,1752633067331,-600.0,0.00021967,10]
[372410106,1752633067343,-600.0,0.00021967,10]
[372410107,1752633067354,-600.0,0.00021967,10]
[372410108,1752633067366,-600.0,0.00021967,10]
[372410109,1752633067377,-600.0,0.00021967,10]
[372410110,1752633067388,-600.0,0.00021967,10]
[372410111,1752633067401,-600.0,0.00021967,10]
[372410112,1752633067414,-600.0,0.00021967,10]
[372410113,1752633067425,-600.0,0.00021967,10]
[372410114,1752633067436,-600.0,0.00021967,10]
[372410115,1752633067448,-255.56745204,0.00021968,2]
[372410116,1752633067459,-152.0,0.00021971,10]
[372410117,1752633067470,-2800.0,0.00021972,2]
[372410118,1752633067482,-168.0,0.00021972,2]
[372410119,1752633067493,-510.96315795,0.00021973,2]
[372410120,1752633067505,-504.57677426,0.00021973,2]
[372410121,1752633067516,-500.62068923,0.00021973,2]
[372410122,1752633067527,-159.65964935,0.00021973,2]
[372410123,1752633067539,-504.53778829,0.00021973,2]
[372410124,1752633067550,-500.0,0.00021973,2]
[372410125,1752633067561,-503.49336062,0.00021973,2]
[372410126,1752633067573,-503.22822954,0.00021973,2]
[372410127,1752633067583,-500.0,0.00021973,2]
[372410128,1752633067595,-500.0,0.00021973,2]
[372410129,1752633067607,-504.18779699,0.00021973,2]
[372410130,1752633067618,-151.0,0.00021973,7]
[372410131,1752633067630,-151.0,0.00021973,7]
[372410132,1752633067642,-226.312696,0.00021973,7]
[372410133,1752633067653,-151.0,0.00021973,7]
[372410134,1752633067664,-282.516919,0.00021973,7]
[372410135,1752633067675,-151.0,0.00021973,7]
[372410136,1752633067685,-414.55,0.00021974,2]
[372410137,1752633067697,-218.296969,0.00021975,7]
[372410138,1752633067708,-218.296969,0.00021975,7]
[372410139,1752633067720,-151.0,0.00021975,7]
[372410140,1752633067732,-151.0,0.00021975,7]
[372410141,1752633067743,-600.0,0.00021975,10]
[372410142,1752633067755,-600.0,0.00021975,10]
[372410143,1752633067766,-600.0,0.00021975,10]
[372410144,1752633067778,-600.0,0.00021975,10]
[372410145,1752633067789,-600.0,0.00021975,10]
[372410146,1752633067800,-567.46431115,0.00021975,10]
[372410147,1752633067812,-92798.01074461,0.00021989,2]
[372410148,1752633067822,-151.0,0.00021989,7]
[372410149,1752633067833,-150.0,0.00021989,2]
[372410150,1752633067844,-11339.0,0.0002199,2]
[372410151,1752633067855,-592.05,0.0002199,2]
[372410152,1752633067867,-303.235357,0.0002199,7]
[372410153,1752633067877,-303.235357,0.0002199,7]
[372410154,1752633067890,-1818.45,0.0002199,2]
[372410155,1752633067903,-151.0,0.00021991,7]
[372410156,1752633067917,-179.950999,0.00021991,7]
[372410157,1752633067929,-179.950999,0.00021991,7]
[372410158,1752633067940,-237.754216,0.00021991,7]
[372410159,1752633067952,-151.0,0.00021991,7]
[372410160,1752633067963,-151.0,0.00021991,7]
[372410161,1752633067975,-226.204737,0.00021998,7]
[372410162,1752633067986,-226.204737,0.00021998,7]
[372410163,1752633067998,-151.0,0.00021998,7]
[372410164,1752633068011,-500.0,0.00021998,2]
[372410165,1752633068022,-544.7,0.00021998,2]
[372410166,1752633068033,-500.0,0.00021998,2]
[372410167,1752633068045,-654.95,0.00021998,2]
[372410168,1752633068057,-177.001933,0.00021999,7]
[372410169,1752633068068,-177.001933,0.00021999,7]
[372410170,1752633068079,-193.357608,0.00021999,7]
[372410171,1752633068090,-165.0325014,0.00021999,2]
[372410172,1752633068102,-1307.36,0.00021999,2]
[372410173,1752633068114,-500.0,0.00022,2]
[372410174,1752633068125,-1238.2748378,0.00022,2]
[372410175,1752633068136,-500.0,0.00022,2]
[372410176,1752633068148,-3000.0,0.00022,2]
[372410177,1752633068161,-3000.0,0.00022,2]
[372410178,1752633068173,-3000.0,0.00022,2]
[372410179,1752633068185,-1269.97,0.00022,2]
[372410180,1752633068197,-1000.0,0.00022,2]
[372410181,1752633068209,-1005.00567601,0.00022,2]
[372410182,1752633068221,-1868.524215,0.00022,2]
[372410183,1752633068232,-835.244334,0.00022,7]
[372410184,1752633068244,-835.244334,0.00022,7]
[372410185,1752633068257,-155.021086,0.00022,7]
[372410186,1752633068268,-154.717263,0.00022,7]
[372410187,1752633068279,-154.717263,0.00022,7]
[372410188,1752633068291,-159.030775,0.00022,7]
[372410189,1752633068302,-151.0,0.00022,7]
[372410190,1752633068314,-231.507309,0.00022,7]
[372410191,1752633068325,-231.507309,0.00022,7]
[372410192,1752633068336,-209.803661,0.00022,7]
[372410193,1752633068347,-151.0,0.00022,7]
[372410194,1752633068359,-152.879025,0.00022,7]
[372410195,1752633068370,-151.0,0.00022,7]
[372410196,1752633068381,-670.23,0.00022,2]
[372410197,1752633068392,-500.0,0.00022,2]
[372410198,1752633068407,-500.0,0.00022,2]
[372410199,1752633068418,-227.169309,0.00022,7]
[372410200,1752633068430,-151.0,0.00022,7]
[372410201,1752633068441,-227.169309,0.00022,7]
[372410202,1752633068452,-802.0,0.00022,2]
[372410203,1752633068464,-361.0,0.00022,2]
[372410204,1752633068475,-5002.66819893,0.00022,2]
[372410205,1752633068489,-216.135749,0.00022,7]
[372410206,1752633068500,-216.135749,0.00022,7]
[372410207,1752633068513,-2500.48020032,0.00022,2]
[372410208,1752633068524,-1084.162014,0.00022,7]
[372410209,1752633068536,-1084.16201166,0.00022,7]
[372410210,1752633068548,-179.708148,0.00022,7]
[372410211,1752633068559,-179.708148,0.00022,7]
[372410212,1752633068571,-838.53403088,0.00022,10]
[372410213,1752633068582,-838.53403088,0.00022,30]
[372410214,1752633068594,-210.72748344,0.00022,10]
[372410215,1752633068605,-210.72748344,0.00022,30]
[372410216,1752633068617,-210.72748344,0.00022,7]
[372410217,1752633068628,-210.72748344,0.00022,3]
[372410218,1752633068639,-447.87393831,0.00022,10]
[372410219,1752633068652,-447.87393831,0.00022,30]
[372410220,1752633068664,-447.87393831,0.00022,7]
[372410221,1752633068675,-447.87393831,0.00022,3]
[372410222,1752633068687,-715.028556,0.00022,7]
[372410223,1752633068698,-151.0,0.00022001,7]
[372410224,1752633068710,-152.004098,0.00022001,7]
[372410225,1752633068721,-151.0,0.00022001,7]
[372410226,1752633068733,-151.0,0.00022001,7]
[372410227,1752633068744,-512.07,0.00022001,2]
[372410228,1752633068757,-596.74,0.00022001,2]
[372410229,1752633068768,-173.219293,0.00022002,7]
[372410230,1752633068780,-151.0,0.00022002,7]
[372410231,1752633068792,-476.27654184,0.00022003,6]
[372410232,1752633068803,-932.84,0.00022014,2]
[372410233,1752633068815,-500.0,0.00022014,2]
[372410234,1752633068827,-678.25,0.00022014,2]
[372410235,1752633068839,-151.0,0.00022015,7]
[372410236,1752633068851,-673.187052,0.00022015,7]
[372410237,1752633068864,-673.187052,0.00022015,7]
[372410238,1752633068876,-151.0,0.00022015,7]
[372410239,1752633068888,-165.286456,0.00022015,7]
[372410240,1752633068901,-165.286456,0.00022015,7]
[372410241,1752633068914,-806.44845165,0.00022029,2]
[372410242,1752633068927,-241.11355937,0.00022029,4]
[372410243,1752633068939,-242.01653799,0.00022029,4]
[372410244,1752633068953,-258.581617,0.00022029,4]
[372410245,1752633068964,-932.84,0.00022038,2]
[372410246,1752633068976,-500.0,0.00022038,2]
[372410247,1752633068989,-592.05,0.00022038,2]
[372410248,1752633069002,-1307.36,0.00022038,2]
[372410249,1752633069014,-1818.45,0.00022038,2]
[372410250,1752633069026,-678.25,0.00022038,2]
[372410251,1752633069038,-172.448359,0.00022039,7]
[372410252,1752633069050,-156.293986,0.00022039,7]
[372410253,1752633069062,-226.204737,0.00022039,7]
[372410254,1752633069074,-226.204737,0.00022039,7]
[372410255,1752633069087,-835.244334,0.00022039,7]
[372410256,1752633069099,-835.244334,0.00022039,7]
[372410257,1752633069111,-151.0,0.00022039,7]
[372410258,1752633069123,-154.717263,0.00022039,7]
[372410259,1752633069136,-154.717263,0.00022039,7]
[372410260,1752633069148,-151.0,0.00022039,7]
[372410261,1752633069160,-151.0,0.00022039,7]
[372410262,1752633069172,-165.0325014,0.00022039,2]
[372410263,1752633069184,-5519.3997506,0.00022039,2]
[372410264,1752633069196,-303.235357,0.00022039,7]
[372410265,1752633069207,-303.235359,0.00022039,7]
[372410266,1752633069219,-120471.6443721,0.00022039,2]
[372410267,1752633069231,-151.0,0.00022039,7]
[372410268,1752633069243,-289.0,0.00022043,2]
[372410269,1752633069256,-654.95,0.00022052,2]
[372410270,1752633069267,-151.0,0.00022053,7]
[372410271,1752633069281,-151.0,0.00022053,7]
[372410272,1752633069295,-151.0,0.00022053,7]
[372410273,1752633069307,-217.440783,0.00022053,7]
[372410274,1752633069320,-512.07,0.00022053,2]
[372410275,1752633069331,-512.07,0.00022053,2]
[372410276,1752633069344,-512.07,0.00022053,2]
[372410277,1752633069356,-512.07,0.00022053,2]
[372410278,1752633069368,-512.07,0.00022053,2]
[372410279,1752633069381,-512.07,0.00022053,2]
[372410280,1752633069394,-512.07,0.00022053,2]
[372410281,1752633069411,-512.07,0.00022053,2]
[372410282,1752633069423,-500.0,0.00022053,2]
[372410283,1752633069435,-500.0,0.00022053,2]
[372410284,1752633069450,-500.0,0.00022053,2]
[372410285,1752633070339,-500.0,0.00022053,2]
[372410286,1752633070364,-500.0,0.00022053,2]
[372410287,1752633070396,-500.0,0.00022053,2]
[372410288,1752633070436,-247.70362288,0.00022053,2]
[372410289,1752633070449,-544.7,0.00022053,2]
[372410290,1752633070460,-544.7,0.00022053,2]
[372410291,1752633070471,-544.7,0.00022053,2]
[372410292,1752633070483,-544.7,0.00022053,2]
[372410293,1752633070492,-544.7,0.00022053,2]
[372410294,1752633070503,-544.7,0.00022053,2]
[372410295,1752633070512,-544.7,0.00022053,2]
[372410296,1752633070521,-544.7,0.00022053,2]
[372410297,1752633070532,-544.7,0.00022053,2]
[372410298,1752633070542,-544.7,0.00022053,2]
[372410299,1752633070553,-544.7,0.00022053,2]
[372410300,1752633070562,-544.9385131,0.00022053,2]
[372410301,1752633070572,-151.0,0.00022053,7]
[372410302,1752633070582,-932.84,0.00022053,2]
[372410303,1752633070593,-932.84,0.00022053,2]
[372410304,1752633070603,-932.84,0.00022053,2]
[372410305,1752633070613,-932.84,0.00022053,2]
[372410306,1752633070624,-932.84,0.00022053,2]
[372410307,1752633070633,-932.84,0.00022053,2]
[372410308,1752633070643,-932.84,0.00022053,2]
[372410309,1752633070652,-932.84,0.00022053,2]
[372410310,1752633070661,-932.84,0.00022053,2]
[372410311,1752633070671,-932.84,0.00022053,2]
[372410312,1752633070680,-933.03704579,0.00022053,2]
[372410313,1752633070690,-500.0,0.00022053,2]
[372410314,1752633070699,-592.05,0.00022053,2]
[372410315,1752633070708,-461.34439915,0.00022053,2]
[372410316,1752633070719,-592.05,0.00022053,2]
[372410317,1752633070728,-592.05,0.00022053,2]
[372410318,1752633070738,-592.05,0.00022053,2]
[372410319,1752633070747,-592.05,0.00022053,2]
[372410320,1752633070757,-592.05,0.00022053,2]
[372410321,1752633070767,-592.05,0.00022053,2]
[372410322,1752633070776,-592.05,0.00022053,2]
[372410323,1752633070786,-592.05,0.00022053,2]
[372410324,1752633070795,-592.05,0.00022053,2]
[372410325,1752633070805,-592.18346617,0.00022053,2]
[372410326,1752633070814,-500.0,0.00022053,2]
[372410327,1752633070824,-507.0613143,0.00022053,2]
[372410328,1752633070833,-1307.36,0.00022053,2]
[372410329,1752633070843,-1307.36,0.00022053,2]
[372410330,1752633070852,-1307.36,0.00022053,2]
[372410331,1752633070862,-1307.36,0.00022053,2]
[372410332,1752633070871,-1307.36,0.00022053,2]
[372410333,1752633070881,-1307.36,0.00022053,2]
[372410334,1752633070890,-1307.36,0.00022053,2]
[372410335,1752633070899,-1307.36,0.00022053,2]
[372410336,1752633070909,-1307.36,0.00022053,2]
[372410337,1752633070918,-1307.49447794,0.00022053,2]
[372410338,1752633070927,-654.95,0.00022053,2]
[372410339,1752633070937,-654.95,0.00022053,2]
[372410340,1752633070946,-654.95,0.00022053,2]
[372410341,1752633070958,-654.95,0.00022053,2]
[372410342,1752633070969,-654.95,0.00022053,2]
[372410343,1752633070979,-654.95,0.00022053,2]
[372410344,1752633070989,-654.95,0.00022053,2]
[372410345,1752633070999,-654.95,0.00022053,2]
[372410346,1752633071014,-596.74,0.00022053,2]
[372410347,1752633071024,-654.95,0.00022053,2]
[372410348,1752633071034,-596.74,0.00022053,2]
[372410349,1752633071043,-654.95,0.00022053,2]
[372410350,1752633071054,-596.74,0.00022053,2]
[372410351,1752633071064,-655.13166064,0.00022053,2]
[372410352,1752633071075,-596.74,0.00022053,2]
[372410353,1752633071085,-596.74,0.00022053,2]
[372410354,1752633071095,-596.74,0.00022053,2]
[372410355,1752633071105,-596.74,0.00022053,2]
[372410356,1752633071115,-596.74,0.00022053,2]
[372410357,1752633071125,-1818.45,0.00022053,2]
[372410358,1752633071137,-1818.45,0.00022053,2]
[372410359,1752633071148,-1818.45,0.00022053,2]
[372410360,1752633071158,-1818.45,0.00022053,2]
[372410361,1752633071167,-1818.45,0.00022053,2]
[372410362,1752633071177,-1818.45,0.00022053,2]
[372410363,1752633071186,-1818.45,0.00022053,2]
[372410364,1752633071195,-1818.45,0.00022053,2]
[372410365,1752633071205,-1818.45,0.00022053,2]
[372410366,1752633071214,-1818.45,0.00022053,2]
[372410367,1752633071226,-1818.68422749,0.00022053,2]
[372410368,1752633071236,-678.25,0.00022053,2]
[372410369,1752633071246,-678.25,0.00022053,2]
[372410370,1752633071256,-678.25,0.00022053,2]
[372410371,1752633071266,-678.25,0.00022053,2]
[372410372,1752633071275,-678.25,0.00022053,2]
[372410373,1752633071285,-678.25,0.00022053,2]
[372410374,1752633071294,-678.25,0.00022053,2]
[372410375,1752633071304,-678.25,0.00022053,2]
[372410376,1752633071313,-678.25,0.00022053,2]
[372410377,1752633071322,-678.25,0.00022053,2]
[372410378,1752633071331,-678.3,0.00022053,2]
[372410379,1752633071341,-179.708148,0.00022053,7]
[372410380,1752633071351,-179.708155,0.00022053,7]
[372410381,1752633071360,-150.0,0.00022053,2]
[372410382,1752633071370,-150.0,0.00022053,2]
[372410383,1752633071379,-150.0,0.00022053,2]
[372410384,1752633071391,-174.84070238,0.00022053,2]
[372410385,1752633071403,-500.0,0.00022054,2]
[372410386,1752633071414,-218.296969,0.00022054,7]
[372410387,1752633071424,-218.296969,0.00022054,7]
[372410388,1752633071436,-218.296969,0.00022054,7]
[372410389,1752633071447,-218.296969,0.00022054,7]
[372410390,1752633071459,-218.296969,0.00022054,7]
[372410391,1752633071468,-218.296969,0.00022054,7]
[372410392,1752633071479,-218.296969,0.00022054,7]
[372410393,1752633071491,-218.296965,0.00022054,7]
[372410394,1752633071501,-1539.29,0.00022054,2]
[372410395,1752633071512,-177.001933,0.00022054,7]
[372410396,1752633071521,-177.001933,0.00022054,7]
[372410397,1752633071531,-177.001933,0.00022054,7]